[Event "Titled Tuesday Blitz August 23 Late 2022"]
[White "Manukyan, Artyom"]
[Black "Howell, David W L"]
[WhiteFideId "13305786"]
[BlackFideId "410608"]
[WhiteElo "2078"]
[BlackElo "2559"]
[Result "0-1"]
[Round "01"]
[TimeControl "180+1"]
[Date "2022.08.23"]
[WhiteClock "0:00:05"]
[BlackClock "0:00:06"]

1. e4 {[%clk 0:02:59]}  e6 {[%clk 0:02:55]} 2. d4 {[%clk 0:02:58]}  d5 {[%clk 0:02:56]} 3. Bd3 {[%clk 0:02:58]}  c5 {[%clk 0:02:50]} 4. exd5 {[%clk 0:02:57]}  exd5 {[%clk 0:02:51]} 5. c3 {[%clk 0:02:58]}  Nc6 {[%clk 0:02:45]} 6. Nf3 {[%clk 0:02:55]}  cxd4 {[%clk 0:02:37]} 7. cxd4 {[%clk 0:02:54]}  Bd6 {[%clk 0:02:37]} 8. O-O {[%clk 0:02:54]}  Nge7 {[%clk 0:02:36]} 9. Nc3 {[%clk 0:02:53]}  O-O {[%clk 0:02:36]} 10. h3 {[%clk 0:02:53]}  h6 {[%clk 0:02:31]} 11. Re1 {[%clk 0:02:52]}  Re8 {[%clk 0:02:31]} 12. Be3 {[%clk 0:02:19]}  Bc7 {[%clk 0:02:22]} 13. Nb5 {[%clk 0:02:16]}  Bb8 {[%clk 0:02:07]} 14. Qd2 {[%clk 0:02:14]}  Nf5 {[%clk 0:02:06]} 15. Rad1 {[%clk 0:01:54]}  Nxe3 {[%clk 0:01:59]} 16. Rxe3 {[%clk 0:01:52]}  a6 {[%clk 0:01:54]} 17. Nc3 {[%clk 0:01:50]}  Be6 {[%clk 0:01:52]} 18. Bb1 {[%clk 0:01:47]}  Bf4 {[%clk 0:01:21]} 19. Qd3 {[%clk 0:01:43]}  Bxe3 {[%clk 0:01:00]} 20. Qh7+ {[%clk 0:01:43]}  Kf8 {[%clk 0:01:00]} 21. fxe3 {[%clk 0:01:44]}  Qf6 {[%clk 0:01:01]} 22. Rf1 {[%clk 0:01:43]}  Ke7 {[%clk 0:01:00]} 23. e4 {[%clk 0:01:00]}  Rh8 {[%clk 0:00:43]} 24. e5 {[%clk 0:00:57]}  Qf4 {[%clk 0:00:43]} 25. Qd3 {[%clk 0:00:56]}  h5 {[%clk 0:00:37]} 26. Ne2 {[%clk 0:00:53]}  Qh6 {[%clk 0:00:36]} 27. Qa3+ {[%clk 0:00:53]}  Ke8 {[%clk 0:00:34]} 28. h4 {[%clk 0:00:48]}  Bg4 {[%clk 0:00:31]} 29. Ng3 {[%clk 0:00:41]}  Qf4 {[%clk 0:00:24]} 30. Kh2 {[%clk 0:00:32]}  Bxf3 {[%clk 0:00:19]} 31. Rxf3 {[%clk 0:00:29]}  Qxh4+ {[%clk 0:00:19]} 32. Kg1 {[%clk 0:00:29]}  Qxd4+ {[%clk 0:00:20]} 33. Kh2 {[%clk 0:00:25]}  Qh4+ {[%clk 0:00:17]} 34. Kg1 {[%clk 0:00:25]}  Qd4+ {[%clk 0:00:17]} 35. Kh2 {[%clk 0:00:25]}  Nxe5 {[%clk 0:00:18]} 36. Re3 {[%clk 0:00:13]}  g6 {[%clk 0:00:12]} 37. Ne2 {[%clk 0:00:07]}  Qh4+ {[%clk 0:00:12]} 38. Kg1 {[%clk 0:00:06]}  Qe1+ {[%clk 0:00:11]} 39. Kh2 {[%clk 0:00:07]}  Qh4+ {[%clk 0:00:11]} 40. Kg1 {[%clk 0:00:07]}  Qe7 {[%clk 0:00:12]} 41. Qxe7+ {[%clk 0:00:06]}  Kxe7 {[%clk 0:00:12]} 42. Rxe5+ {[%clk 0:00:07]}  Kd6 {[%clk 0:00:13]} 43. Re3 {[%clk 0:00:07]}  Rhe8 {[%clk 0:00:12]} 44. Kf2 {[%clk 0:00:08]}  Rxe3 {[%clk 0:00:12]} 45. Kxe3 {[%clk 0:00:09]}  Re8+ {[%clk 0:00:12]} 46. Kd3 {[%clk 0:00:08]}  h4 {[%clk 0:00:11]} 47. Bc2 {[%clk 0:00:08]}  Ke5 {[%clk 0:00:08]} 48. Nd4 {[%clk 0:00:08]}  Kf4 {[%clk 0:00:08]} 49. Ne2+ {[%clk 0:00:07]}  Kg4 {[%clk 0:00:08]} 50. Bd1 {[%clk 0:00:07]}  f5 {[%clk 0:00:06]} 51. Nd4+ {[%clk 0:00:07]}  Kg3 {[%clk 0:00:07]} 52. Bf3 {[%clk 0:00:08]}  Re4 {[%clk 0:00:06]} 53. Ne2+ {[%clk 0:00:06]}  Kf2 {[%clk 0:00:05]} 54. Nc3 {[%clk 0:00:07]}  g5 {[%clk 0:00:04]} 55. Nxd5 {[%clk 0:00:06]}  Re5 {[%clk 0:00:05]} 56. Nc3 {[%clk 0:00:05]}  Re3+ {[%clk 0:00:05]} 57. Kd2 {[%clk 0:00:05]}  Rxf3 {[%clk 0:00:05]} 58. gxf3 {[%clk 0:00:06]}  h3 {[%clk 0:00:06]} 59. Nd1+ {[%clk 0:00:05]}  Kxf3 {[%clk 0:00:06]} 60. Ke1 {[%clk 0:00:06]}  h2 {[%clk 0:00:06]} 61. Nf2 {[%clk 0:00:05]}  g4 {[%clk 0:00:07]} 62. Nh1 {[%clk 0:00:05]}  Kg2 {[%clk 0:00:07]} 63. Ke2 {[%clk 0:00:05]}  f4 {[%clk 0:00:06]} 64. b4 {[%clk 0:00:05]}  f3+ {[%clk 0:00:06]} 0-1


[Site "https://www.chess.com"]

[Event "Titled Tuesday Blitz August 23 Late 2022"]
[White "Martinez Alcantara, Jose Eduardo"]
[Black "Romero Pallares, Daniel"]
[WhiteFideId "3805662"]
[BlackFideId "32025637"]
[WhiteElo "2703"]
[BlackElo "2114"]
[Result "1-0"]
[Round "01"]
[TimeControl "180+1"]
[Date "2022.08.23"]
[WhiteClock "0:01:27"]
[BlackClock "0:00:04"]

1. e4 {[%clk 0:03:00]}  g6 {[%clk 0:02:00]} 2. d4 {[%clk 0:02:58]}  Bg7 {[%clk 0:02:01]} 3. c3 {[%clk 0:02:57]}  d6 {[%clk 0:02:01]} 4. Bd3 {[%clk 0:02:58]}  Nf6 {[%clk 0:02:01]} 5. Nf3 {[%clk 0:02:58]}  O-O {[%clk 0:02:02]} 6. O-O {[%clk 0:02:58]}  Nc6 {[%clk 0:02:03]} 7. h3 {[%clk 0:02:59]}  e5 {[%clk 0:02:03]} 8. dxe5 {[%clk 0:02:57]}  Nxe5 {[%clk 0:01:54]} 9. Nxe5 {[%clk 0:02:53]}  dxe5 {[%clk 0:01:55]} 10. Bg5 {[%clk 0:02:50]}  Qe7 {[%clk 0:01:37]} 11. Qe2 {[%clk 0:02:42]}  b6 {[%clk 0:01:32]} 12. Nd2 {[%clk 0:02:37]}  Bb7 {[%clk 0:01:32]} 13. Nc4 {[%clk 0:02:38]}  Qe6 {[%clk 0:01:22]} 14. Bxf6 {[%clk 0:02:29]}  Bxf6 {[%clk 0:01:14]} 15. Ne3 {[%clk 0:02:30]}  Bg7 {[%clk 0:01:11]} 16. Bc4 {[%clk 0:02:29]}  Qe7 {[%clk 0:01:06]} 17. Bd5 {[%clk 0:02:28]}  c6 {[%clk 0:01:06]} 18. Bb3 {[%clk 0:02:28]}  a5 {[%clk 0:01:01]} 19. a4 {[%clk 0:02:29]}  Ba6 {[%clk 0:01:00]} 20. Bc4 {[%clk 0:02:28]}  Bb7 {[%clk 0:01:00]} 21. Rfd1 {[%clk 0:02:28]}  Rad8 {[%clk 0:00:56]} 22. Qc2 {[%clk 0:02:28]}  Qc5 {[%clk 0:00:56]} 23. Qb3 {[%clk 0:02:17]}  Rxd1+ {[%clk 0:00:38]} 24. Rxd1 {[%clk 0:02:17]}  Bh6 {[%clk 0:00:39]} 25. Bxf7+ {[%clk 0:02:02]}  Rxf7 {[%clk 0:00:27]} 26. Rd7 {[%clk 0:02:01]}  Qf8 {[%clk 0:00:24]} 27. Rxb7 {[%clk 0:01:59]}  Bxe3 {[%clk 0:00:24]} 28. fxe3 {[%clk 0:02:00]}  Kg7 {[%clk 0:00:24]} 29. Rxf7+ {[%clk 0:02:00]}  Qxf7 {[%clk 0:00:25]} 30. Qxb6 {[%clk 0:01:59]}  Qc4 {[%clk 0:00:25]} 31. Qc7+ {[%clk 0:01:59]}  Kh6 {[%clk 0:00:16]} 32. Qxe5 {[%clk 0:01:57]}  Qxa4 {[%clk 0:00:16]} 33. Kh2 {[%clk 0:01:54]}  Qc2 {[%clk 0:00:14]} 34. Qe7 {[%clk 0:01:48]}  Qf2 {[%clk 0:00:07]} 35. e5 {[%clk 0:01:38]}  a4 {[%clk 0:00:03]} 36. Qf6 {[%clk 0:01:32]}  Qxe3 {[%clk 0:00:03]} 37. e6 {[%clk 0:01:29]}  Qe4 {[%clk 0:00:04]} 38. e7 {[%clk 0:01:27]} 1-0


[Site "https://www.chess.com"]

[Event "Titled Tuesday Blitz August 23 Late 2022"]
[White "Melian, Juan Sebastian"]
[Black "Bluebaum, Matthias"]
[WhiteFideId "3706575"]
[BlackFideId "24651516"]
[WhiteElo "1851"]
[BlackElo "2603"]
[Result "0-1"]
[Round "01"]
[TimeControl "180+1"]
[Date "2022.08.23"]
[WhiteClock "0:00:03"]
[BlackClock "0:01:55"]

1. d4 {[%clk 0:02:51]}  Nf6 {[%clk 0:03:00]} 2. c4 {[%clk 0:02:51]}  e6 {[%clk 0:03:00]} 3. Nc3 {[%clk 0:02:51]}  Bb4 {[%clk 0:03:00]} 4. Bg5 {[%clk 0:02:51]}  h6 {[%clk 0:02:59]} 5. Bh4 {[%clk 0:02:51]}  d5 {[%clk 0:02:58]} 6. e3 {[%clk 0:02:50]}  O-O {[%clk 0:02:52]} 7. cxd5 {[%clk 0:02:45]}  exd5 {[%clk 0:02:52]} 8. Bd3 {[%clk 0:02:41]}  c5 {[%clk 0:02:52]} 9. a3 {[%clk 0:02:38]}  Bxc3+ {[%clk 0:02:44]} 10. bxc3 {[%clk 0:02:39]}  Nbd7 {[%clk 0:02:40]} 11. Ne2 {[%clk 0:02:35]}  Qa5 {[%clk 0:02:37]} 12. O-O {[%clk 0:02:34]}  b6 {[%clk 0:02:37]} 13. a4 {[%clk 0:02:18]}  Ba6 {[%clk 0:02:35]} 14. Bxa6 {[%clk 0:02:11]}  Qxa6 {[%clk 0:02:36]} 15. Bg3 {[%clk 0:02:04]}  Rfe8 {[%clk 0:02:34]} 16. Nf4 {[%clk 0:02:00]}  Rac8 {[%clk 0:02:31]} 17. Nh5 {[%clk 0:01:41]}  Nxh5 {[%clk 0:02:27]} 18. Qxh5 {[%clk 0:01:41]}  Nf6 {[%clk 0:02:28]} 19. Qf5 {[%clk 0:01:24]}  Ne4 {[%clk 0:02:28]} 20. Qxd5 {[%clk 0:01:18]}  Nxc3 {[%clk 0:02:28]} 21. Qd7 {[%clk 0:00:34]}  cxd4 {[%clk 0:02:28]} 22. exd4 {[%clk 0:00:35]}  Rcd8 {[%clk 0:02:28]} 23. Qc6 {[%clk 0:00:29]}  Ne2+ {[%clk 0:02:27]} 24. Kh1 {[%clk 0:00:29]}  Nxd4 {[%clk 0:02:27]} 25. Qc3 {[%clk 0:00:28]}  Ne2 {[%clk 0:02:26]} 26. Qc6 {[%clk 0:00:21]}  Rc8 {[%clk 0:02:26]} 27. Qd5 {[%clk 0:00:16]}  Qc4 {[%clk 0:02:24]} 28. Qb7 {[%clk 0:00:15]}  Nc1 {[%clk 0:01:58]} 29. Rg1 {[%clk 0:00:09]}  Nb3 {[%clk 0:01:58]} 30. Rab1 {[%clk 0:00:08]}  Qxa4 {[%clk 0:01:57]} 31. h3 {[%clk 0:00:07]}  Nc5 {[%clk 0:01:57]} 32. Qd5 {[%clk 0:00:07]}  Ne4 {[%clk 0:01:58]} 33. Rge1 {[%clk 0:00:06]}  Nc3 {[%clk 0:01:55]} 34. Qb3 {[%clk 0:00:03]} 0-1


[Site "https://www.chess.com"]

[Event "Titled Tuesday Blitz August 23 Late 2022"]
[White "Mikhalsky, Vladimir"]
[Black "Harvey, Marcus R"]
[WhiteFideId "14144352"]
[BlackFideId "400092"]
[WhiteElo "2301"]
[BlackElo "2485"]
[Result "0-1"]
[Round "01"]
[TimeControl "180+1"]
[Date "2022.08.23"]
[WhiteClock "0:00:01"]
[BlackClock "0:00:04"]

1. d4 {[%clk 0:02:48]}  Nf6 {[%clk 0:02:59]} 2. c4 {[%clk 0:02:46]}  e6 {[%clk 0:02:55]} 3. g3 {[%clk 0:02:46]}  Bb4+ {[%clk 0:02:55]} 4. Bd2 {[%clk 0:02:46]}  c5 {[%clk 0:02:55]} 5. Bg2 {[%clk 0:02:44]}  O-O {[%clk 0:02:52]} 6. Bxb4 {[%clk 0:02:40]}  cxb4 {[%clk 0:02:52]} 7. d5 {[%clk 0:02:39]}  e5 {[%clk 0:02:48]} 8. d6 {[%clk 0:02:37]}  Qb6 {[%clk 0:02:36]} 9. Nf3 {[%clk 0:02:33]}  Ne4 {[%clk 0:02:21]} 10. O-O {[%clk 0:02:28]}  Qxd6 {[%clk 0:02:15]} 11. Qxd6 {[%clk 0:02:23]}  Nxd6 {[%clk 0:02:16]} 12. Nxe5 {[%clk 0:02:23]}  Nc6 {[%clk 0:02:11]} 13. c5 {[%clk 0:02:04]}  Nxe5 {[%clk 0:02:01]} 14. cxd6 {[%clk 0:02:03]}  Nc4 {[%clk 0:02:02]} 15. Rd1 {[%clk 0:02:03]}  Nxb2 {[%clk 0:01:52]} 16. Rd4 {[%clk 0:02:03]}  a5 {[%clk 0:01:52]} 17. a3 {[%clk 0:02:02]}  Re8 {[%clk 0:01:38]} 18. e3 {[%clk 0:01:50]}  b3 {[%clk 0:01:10]} 19. Nd2 {[%clk 0:01:48]}  a4 {[%clk 0:01:02]} 20. Rb1 {[%clk 0:01:47]}  Ra7 {[%clk 0:00:53]} 21. Rxb2 {[%clk 0:01:47]}  b5 {[%clk 0:00:53]} 22. Rb1 {[%clk 0:01:41]}  Bb7 {[%clk 0:00:53]} 23. Rc1 {[%clk 0:01:38]}  Bxg2 {[%clk 0:00:52]} 24. Kxg2 {[%clk 0:01:37]}  f5 {[%clk 0:00:31]} 25. Rc7 {[%clk 0:01:34]}  Ra6 {[%clk 0:00:19]} 26. Rxd7 {[%clk 0:01:32]}  Rb6 {[%clk 0:00:19]} 27. Rc7 {[%clk 0:01:26]}  Rd8 {[%clk 0:00:19]} 28. d7 {[%clk 0:01:25]}  Kf7 {[%clk 0:00:19]} 29. Nf3 {[%clk 0:01:07]}  b4 {[%clk 0:00:17]} 30. Ne5+ {[%clk 0:00:51]}  Ke6 {[%clk 0:00:17]} 31. Nc6 {[%clk 0:00:50]}  Rxd7 {[%clk 0:00:11]} 32. Rcxd7 {[%clk 0:00:33]}  Rxc6 {[%clk 0:00:11]} 33. axb4 {[%clk 0:00:25]}  b2 {[%clk 0:00:11]} 34. Rd1 {[%clk 0:00:22]}  Rc1 {[%clk 0:00:10]} 35. R7d6+ {[%clk 0:00:19]}  Kf7 {[%clk 0:00:10]} 36. Rd7+ {[%clk 0:00:18]}  Kg6 {[%clk 0:00:10]} 37. R7d6+ {[%clk 0:00:14]}  Kh5 {[%clk 0:00:11]} 38. R1d5 {[%clk 0:00:13]}  b1=Q {[%clk 0:00:11]} 39. g4+ {[%clk 0:00:10]}  Kxg4 {[%clk 0:00:08]} 40. h3+ {[%clk 0:00:07]}  Kh5 {[%clk 0:00:07]} 41. Rd4 {[%clk 0:00:05]}  Rg1+ {[%clk 0:00:07]} 42. Kf3 {[%clk 0:00:06]}  Qc2 {[%clk 0:00:04]} 43. R6d5 {[%clk 0:00:04]}  Rg5 {[%clk 0:00:03]} 44. h4 {[%clk 0:00:04]}  Rg6 {[%clk 0:00:03]} 45. Rf4 {[%clk 0:00:03]}  Kh6 {[%clk 0:00:04]} 46. Rfxf5 {[%clk 0:00:03]}  Rf6 {[%clk 0:00:04]} 47. e4 {[%clk 0:00:03]}  Rxf5+ {[%clk 0:00:03]} 48. Rxf5 {[%clk 0:00:03]}  Qd3+ {[%clk 0:00:03]} 49. Kf4 {[%clk 0:00:02]}  a3 {[%clk 0:00:04]} 50. f3 {[%clk 0:00:01]}  Qd2+ {[%clk 0:00:04]} 0-1


[Site "https://www.chess.com"]

[Event "Titled Tuesday Blitz August 23 Late 2022"]
[White "Salem, A.R. Saleh"]
[Black "Szalay, Karoly"]
[WhiteFideId "9301348"]
[BlackFideId "2600544"]
[WhiteElo "2674"]
[BlackElo "2525"]
[Result "1-0"]
[Round "01"]
[TimeControl "180+1"]
[Date "2022.08.23"]
[WhiteClock "0:00:47"]
[BlackClock "0:00:22"]

1. d4 {[%clk 0:03:00]}  d5 {[%clk 0:02:58]} 2. c4 {[%clk 0:03:00]}  e6 {[%clk 0:02:56]} 3. Nc3 {[%clk 0:02:59]}  c6 {[%clk 0:02:56]} 4. Nf3 {[%clk 0:02:58]}  Nf6 {[%clk 0:02:55]} 5. e3 {[%clk 0:02:56]}  Bd6 {[%clk 0:02:54]} 6. Bd3 {[%clk 0:02:56]}  O-O {[%clk 0:02:55]} 7. e4 {[%clk 0:02:53]}  dxe4 {[%clk 0:02:51]} 8. Nxe4 {[%clk 0:02:54]}  Nxe4 {[%clk 0:02:51]} 9. Bxe4 {[%clk 0:02:55]}  e5 {[%clk 0:02:49]} 10. dxe5 {[%clk 0:02:43]}  Bb4+ {[%clk 0:02:49]} 11. Bd2 {[%clk 0:02:43]}  Qb6 {[%clk 0:02:49]} 12. Qc2 {[%clk 0:02:34]}  h6 {[%clk 0:02:40]} 13. O-O {[%clk 0:02:31]}  Be6 {[%clk 0:02:39]} 14. Be3 {[%clk 0:02:29]}  Qc7 {[%clk 0:02:38]} 15. a3 {[%clk 0:02:26]}  Be7 {[%clk 0:02:38]} 16. Rfe1 {[%clk 0:02:23]}  Nd7 {[%clk 0:02:39]} 17. Bd4 {[%clk 0:02:21]}  a5 {[%clk 0:02:27]} 18. Rad1 {[%clk 0:02:20]}  Rfd8 {[%clk 0:02:26]} 19. Bf5 {[%clk 0:02:20]}  Nf8 {[%clk 0:02:24]} 20. h3 {[%clk 0:02:20]}  Rac8 {[%clk 0:02:15]} 21. Bc3 {[%clk 0:02:20]}  Ra8 {[%clk 0:02:10]} 22. Qe4 {[%clk 0:02:14]}  b5 {[%clk 0:02:05]} 23. cxb5 {[%clk 0:02:05]}  cxb5 {[%clk 0:02:06]} 24. Rc1 {[%clk 0:02:06]}  Qa7 {[%clk 0:02:03]} 25. Nd4 {[%clk 0:01:56]}  Bd5 {[%clk 0:01:59]} 26. Qg4 {[%clk 0:01:47]}  b4 {[%clk 0:01:58]} 27. axb4 {[%clk 0:01:33]}  axb4 {[%clk 0:01:59]} 28. Bd2 {[%clk 0:01:34]}  h5 {[%clk 0:01:44]} 29. Qf4 {[%clk 0:01:29]}  g6 {[%clk 0:01:27]} 30. Bb1 {[%clk 0:01:19]}  Bxg2 {[%clk 0:00:56]} 31. Be3 {[%clk 0:01:19]}  Qb8 {[%clk 0:00:55]} 32. Kxg2 {[%clk 0:01:18]}  Rxd4 {[%clk 0:00:56]} 33. Qxd4 {[%clk 0:01:16]}  Ne6 {[%clk 0:00:56]} 34. Qe4 {[%clk 0:01:17]}  Ra5 {[%clk 0:00:54]} 35. f4 {[%clk 0:01:16]}  Ng7 {[%clk 0:00:53]} 36. Qf3 {[%clk 0:01:16]}  b3 {[%clk 0:00:53]} 37. Bf2 {[%clk 0:01:16]}  Ra4 {[%clk 0:00:53]} 38. Re4 {[%clk 0:01:15]}  Ra5 {[%clk 0:00:53]} 39. Rec4 {[%clk 0:01:16]}  Kh7 {[%clk 0:00:52]} 40. Rc8 {[%clk 0:01:15]}  Qb4 {[%clk 0:00:52]} 41. Be1 {[%clk 0:01:14]}  Qa4 {[%clk 0:00:50]} 42. Bxa5 {[%clk 0:01:13]}  Qxa5 {[%clk 0:00:51]} 43. Be4 {[%clk 0:01:05]}  Qd2+ {[%clk 0:00:49]} 44. Qf2 {[%clk 0:01:05]}  Qb4 {[%clk 0:00:48]} 45. R8c4 {[%clk 0:01:05]}  Qb5 {[%clk 0:00:47]} 46. Rc7 {[%clk 0:01:01]}  Bh4 {[%clk 0:00:42]} 47. Qxh4 {[%clk 0:00:55]}  Qe2+ {[%clk 0:00:42]} 48. Qf2 {[%clk 0:00:56]}  Qxe4+ {[%clk 0:00:43]} 49. Kh2 {[%clk 0:00:57]}  Nf5 {[%clk 0:00:38]} 50. Rxf7+ {[%clk 0:00:57]}  Kh6 {[%clk 0:00:39]} 51. Rxf5 {[%clk 0:00:57]}  Qxf5 {[%clk 0:00:37]} 52. Qe3 {[%clk 0:00:55]}  h4 {[%clk 0:00:36]} 53. e6 {[%clk 0:00:54]}  Qd5 {[%clk 0:00:36]} 54. f5+ {[%clk 0:00:54]}  g5 {[%clk 0:00:36]} 55. Re1 {[%clk 0:00:48]}  Qd6+ {[%clk 0:00:29]} 56. Kg2 {[%clk 0:00:48]}  Qc6+ {[%clk 0:00:26]} 57. Qf3 {[%clk 0:00:47]}  Qc2+ {[%clk 0:00:25]} 58. Re2 {[%clk 0:00:47]}  Qc1 {[%clk 0:00:22]} 59. e7 {[%clk 0:00:47]} 1-0


[Site "https://www.chess.com"]

[Event "Titled Tuesday Blitz August 23 Late 2022"]
[White "Sarana, Alexey"]
[Black "Nozdrachev, Leonid"]
[WhiteFideId "24133795"]
[BlackFideId "24113433"]
[WhiteElo "2666"]
[BlackElo "2100"]
[Result "1-0"]
[Round "01"]
[TimeControl "180+1"]
[Date "2022.08.23"]
[WhiteClock "0:00:16"]
[BlackClock "0:00:01"]

1. d4 {[%clk 0:02:50]}  Nf6 {[%clk 0:02:53]} 2. c4 {[%clk 0:02:50]}  e5 {[%clk 0:02:46]} 3. dxe5 {[%clk 0:02:48]}  Ng4 {[%clk 0:02:46]} 4. Bf4 {[%clk 0:02:49]}  Nc6 {[%clk 0:02:43]} 5. Nf3 {[%clk 0:02:49]}  Bb4+ {[%clk 0:02:43]} 6. Nc3 {[%clk 0:02:50]}  Qe7 {[%clk 0:02:35]} 7. Qd5 {[%clk 0:02:50]}  f6 {[%clk 0:02:33]} 8. exf6 {[%clk 0:02:50]}  Nxf6 {[%clk 0:02:33]} 9. Qd2 {[%clk 0:02:49]}  Ne4 {[%clk 0:02:31]} 10. Qc2 {[%clk 0:02:48]}  Nxc3 {[%clk 0:02:21]} 11. bxc3 {[%clk 0:02:47]}  Qf6 {[%clk 0:02:14]} 12. Bd2 {[%clk 0:02:43]}  O-O {[%clk 0:02:08]} 13. Rd1 {[%clk 0:02:36]}  Bc5 {[%clk 0:02:06]} 14. g3 {[%clk 0:02:03]}  Ne5 {[%clk 0:02:01]} 15. Bg2 {[%clk 0:01:58]}  Nxc4 {[%clk 0:02:01]} 16. O-O {[%clk 0:01:44]}  d5 {[%clk 0:02:00]} 17. Bg5 {[%clk 0:01:43]}  Qf7 {[%clk 0:01:54]} 18. e4 {[%clk 0:01:33]}  c6 {[%clk 0:01:39]} 19. exd5 {[%clk 0:01:28]}  Bg4 {[%clk 0:01:35]} 20. Bf4 {[%clk 0:01:27]}  Bxf3 {[%clk 0:01:23]} 21. Bxf3 {[%clk 0:01:28]}  g5 {[%clk 0:01:23]} 22. dxc6 {[%clk 0:01:28]}  Rad8 {[%clk 0:01:12]} 23. Rxd8 {[%clk 0:01:24]}  Rxd8 {[%clk 0:01:11]} 24. c7 {[%clk 0:01:24]}  Rf8 {[%clk 0:01:04]} 25. Qd3 {[%clk 0:01:20]}  Nb6 {[%clk 0:01:02]} 26. Qb5 {[%clk 0:01:14]}  Qf5 {[%clk 0:00:55]} 27. Be3 {[%clk 0:00:53]}  Bxe3 {[%clk 0:00:46]} 28. Qxf5 {[%clk 0:00:52]}  Rxf5 {[%clk 0:00:42]} 29. fxe3 {[%clk 0:00:50]}  Rc5 {[%clk 0:00:42]} 30. Bxb7 {[%clk 0:00:45]}  Rxc7 {[%clk 0:00:34]} 31. Be4 {[%clk 0:00:38]}  Rxc3 {[%clk 0:00:34]} 32. Re1 {[%clk 0:00:38]}  Kg7 {[%clk 0:00:30]} 33. Kf2 {[%clk 0:00:38]}  Nc4 {[%clk 0:00:28]} 34. Re2 {[%clk 0:00:39]}  h6 {[%clk 0:00:27]} 35. h3 {[%clk 0:00:23]}  Kf6 {[%clk 0:00:26]} 36. Bd5 {[%clk 0:00:16]}  Ne5 {[%clk 0:00:18]} 37. Rd2 {[%clk 0:00:14]}  Nd3+ {[%clk 0:00:17]} 38. Ke2 {[%clk 0:00:13]}  Nb4 {[%clk 0:00:18]} 39. Bb3 {[%clk 0:00:13]}  Ke5 {[%clk 0:00:14]} 40. Rd4 {[%clk 0:00:12]}  a5 {[%clk 0:00:14]} 41. h4 {[%clk 0:00:11]}  Nxa2 {[%clk 0:00:12]} 42. Bxa2 {[%clk 0:00:11]}  gxh4 {[%clk 0:00:06]} 43. gxh4 {[%clk 0:00:11]}  Rc7 {[%clk 0:00:04]} 44. Rd5+ {[%clk 0:00:11]}  Ke4 {[%clk 0:00:04]} 45. Rd4+ {[%clk 0:00:12]}  Ke5 {[%clk 0:00:04]} 46. Bb1 {[%clk 0:00:12]}  Ra7 {[%clk 0:00:04]} 47. Ra4 {[%clk 0:00:12]}  Kd5 {[%clk 0:00:03]} 48. Bd3 {[%clk 0:00:13]}  Kc5 {[%clk 0:00:04]} 49. e4 {[%clk 0:00:13]}  Kb6 {[%clk 0:00:03]} 50. Ke3 {[%clk 0:00:13]}  Rg7 {[%clk 0:00:03]} 51. e5 {[%clk 0:00:14]}  Rg3+ {[%clk 0:00:01]} 52. Kd4 {[%clk 0:00:14]}  Rg4+ {[%clk 0:00:01]} 53. Be4 {[%clk 0:00:14]}  Rxh4 {[%clk 0:00:02]} 54. e6 {[%clk 0:00:15]}  Kc7 {[%clk 0:00:02]} 55. Ke5 {[%clk 0:00:15]}  Rh5+ {[%clk 0:00:02]} 56. Kf6 {[%clk 0:00:15]}  Kd6 {[%clk 0:00:02]} 57. Rd4+ {[%clk 0:00:15]}  Kc5 {[%clk 0:00:01]} 58. Rd1 {[%clk 0:00:16]}  Kb4 {[%clk 0:00:01]} 59. e7 {[%clk 0:00:16]} 1-0


[Site "https://www.chess.com"]

[Event "Titled Tuesday Blitz August 23 Late 2022"]
[White "Siniauski, Artsiom"]
[Black "Mitrabha, Guha"]
[WhiteFideId "13512269"]
[BlackFideId "5057000"]
[WhiteElo "2139"]
[BlackElo "2499"]
[Result "0-1"]
[Round "01"]
[TimeControl "180+1"]
[Date "2022.08.23"]
[WhiteClock "0:00:04"]
[BlackClock "0:02:12"]

1. Nf3 {[%clk 0:02:57]}  d5 {[%clk 0:02:53]} 2. g3 {[%clk 0:02:45]}  g6 {[%clk 0:02:51]} 3. Bg2 {[%clk 0:02:43]}  Bg7 {[%clk 0:02:52]} 4. O-O {[%clk 0:02:44]}  c5 {[%clk 0:02:52]} 5. d3 {[%clk 0:02:41]}  Nc6 {[%clk 0:02:53]} 6. Nbd2 {[%clk 0:02:33]}  Nf6 {[%clk 0:02:53]} 7. c3 {[%clk 0:02:30]}  O-O {[%clk 0:02:53]} 8. Re1 {[%clk 0:02:30]}  e5 {[%clk 0:02:53]} 9. e4 {[%clk 0:02:27]}  d4 {[%clk 0:02:52]} 10. Qc2 {[%clk 0:02:21]}  h6 {[%clk 0:02:51]} 11. a3 {[%clk 0:02:19]}  Be6 {[%clk 0:02:49]} 12. c4 {[%clk 0:02:10]}  a6 {[%clk 0:02:48]} 13. Nf1 {[%clk 0:02:08]}  Nd7 {[%clk 0:02:46]} 14. h3 {[%clk 0:02:02]}  b5 {[%clk 0:02:46]} 15. b3 {[%clk 0:01:49]}  Rb8 {[%clk 0:02:46]} 16. g4 {[%clk 0:01:43]}  Qb6 {[%clk 0:02:45]} 17. Bd2 {[%clk 0:01:37]}  bxc4 {[%clk 0:02:45]} 18. bxc4 {[%clk 0:01:38]}  Qb3 {[%clk 0:02:46]} 19. Rec1 {[%clk 0:01:35]}  Qxc2 {[%clk 0:02:44]} 20. Rxc2 {[%clk 0:01:36]}  Rb3 {[%clk 0:02:45]} 21. Ne1 {[%clk 0:01:36]}  Rfb8 {[%clk 0:02:46]} 22. Bf3 {[%clk 0:01:35]}  Kh7 {[%clk 0:02:30]} 23. Bd1 {[%clk 0:01:32]}  Bf6 {[%clk 0:02:30]} 24. Rca2 {[%clk 0:01:18]}  R3b6 {[%clk 0:02:28]} 25. Ba4 {[%clk 0:01:16]}  Bg5 {[%clk 0:02:27]} 26. Nf3 {[%clk 0:00:58]}  Bxd2 {[%clk 0:02:26]} 27. N1xd2 {[%clk 0:00:59]}  f6 {[%clk 0:02:22]} 28. Kf1 {[%clk 0:00:56]}  Nf8 {[%clk 0:02:22]} 29. Bxc6 {[%clk 0:00:52]}  Rxc6 {[%clk 0:02:21]} 30. Rb1 {[%clk 0:00:48]}  Rxb1+ {[%clk 0:02:17]} 31. Nxb1 {[%clk 0:00:49]}  Rb6 {[%clk 0:02:18]} 32. Nbd2 {[%clk 0:00:49]}  Bd7 {[%clk 0:02:19]} 33. Ke2 {[%clk 0:00:45]}  Ne6 {[%clk 0:02:18]} 34. Nf1 {[%clk 0:00:14]}  Nf4+ {[%clk 0:02:07]} 35. Kd2 {[%clk 0:00:13]}  Nxh3 {[%clk 0:02:08]} 36. a4 {[%clk 0:00:08]}  Nxf2 {[%clk 0:02:07]} 37. a5 {[%clk 0:00:08]}  Rb3 {[%clk 0:02:07]} 38. Ne1 {[%clk 0:00:08]}  Nxg4 {[%clk 0:02:07]} 39. Kc2 {[%clk 0:00:07]}  Rb4 {[%clk 0:02:07]} 40. Nd2 {[%clk 0:00:06]}  Ne3+ {[%clk 0:02:06]} 41. Kc1 {[%clk 0:00:07]}  h5 {[%clk 0:02:07]} 42. Nc2 {[%clk 0:00:07]}  Nxc2 {[%clk 0:02:07]} 43. Kxc2 {[%clk 0:00:07]}  h4 {[%clk 0:02:08]} 44. Ra1 {[%clk 0:00:05]}  h3 {[%clk 0:02:08]} 45. Rh1 {[%clk 0:00:04]}  g5 {[%clk 0:02:08]} 46. Nf1 {[%clk 0:00:04]}  g4 {[%clk 0:02:08]} 47. Ng3 {[%clk 0:00:04]}  Ra4 {[%clk 0:02:09]} 48. Rf1 {[%clk 0:00:04]}  Ra2+ {[%clk 0:02:09]} 49. Kb3 {[%clk 0:00:04]}  Rg2 {[%clk 0:02:10]} 50. Nh5 {[%clk 0:00:03]}  Kg6 {[%clk 0:02:09]} 51. Nxf6 {[%clk 0:00:02]}  Be6 {[%clk 0:02:09]} 52. Ne8 {[%clk 0:00:03]}  Kg5 {[%clk 0:02:10]} 53. Ng7 {[%clk 0:00:02]}  Bg8 {[%clk 0:02:10]} 54. Rf5+ {[%clk 0:00:02]}  Kh4 {[%clk 0:02:10]} 55. Rh5+ {[%clk 0:00:02]}  Kg3 {[%clk 0:02:10]} 56. Nf5+ {[%clk 0:00:03]}  Kf4 {[%clk 0:02:10]} 57. Nh4 {[%clk 0:00:02]}  Rd2 {[%clk 0:02:09]} 58. Ng6+ {[%clk 0:00:02]}  Kg3 {[%clk 0:02:09]} 59. Nxe5 {[%clk 0:00:03]}  h2 {[%clk 0:02:10]} 60. Nd7 {[%clk 0:00:02]}  Rxd3+ {[%clk 0:02:09]} 61. Kc2 {[%clk 0:00:02]}  Rc3+ {[%clk 0:02:10]} 62. Kd2 {[%clk 0:00:02]}  Kg2 {[%clk 0:02:10]} 63. Nxc5 {[%clk 0:00:01]}  h1=Q {[%clk 0:02:11]} 64. Rxh1 {[%clk 0:00:02]}  Kxh1 {[%clk 0:02:12]} 65. e5 {[%clk 0:00:03]}  g3 {[%clk 0:02:12]} 66. Nxa6 {[%clk 0:00:04]}  g2 {[%clk 0:02:12]} 0-1


[Site "https://www.chess.com"]